bitfinex/quotes_ETHUSD_20241120
["timestamp","ask_amount","ask_price","bid_price","bid_amount"]
[1732144482840,4.05506,3072.1,3071.4,3.25576]
[1732144483184,3.25527,3072.0,3071.4,3.25576]
[1732144483337,3.25584,3071.5,3070.5,0.7985]
[1732144483545,3.08274,3071.4,3070.8,3.25647]
[1732144483834,3.25595,3071.3,3070.8,3.25647]
[1732144487141,3.25586,3071.4,3070.8,3.25647]
[1732144487447,3.25584,3071.4,3070.9,3.25634]
[1732144487827,4.07752,3071.8,3071.3,3.25594]
[1732144488047,3.25537,3071.9,3071.3,6.51182]
[1732144488471,3.25537,3071.9,3071.3,3.25588]
[1732144488681,3.25537,3071.9,3071.4,3.25584]
[1732144489069,3.25537,3071.9,3071.3,3.25588]
[1732144489277,3.25537,3071.9,3071.3,3.659158]
[1732144489509,3.25537,3071.9,3071.3,0.403278]
[1732144489699,3.25537,3071.9,3071.1,4.03301]
[1732144489700,3.25564,3071.6,3070.9,3.25631]
[1732144489922,4.45400984,3072.1,3070.7,3.25655]
[1732144489923,3.25612,3071.2,3070.7,3.25655]
[1732144490061,3.25643,3070.9,3070.5,0.7868]
[1732144490256,3.25643,3070.9,3070.4,3.2569]
[1732144491607,3.25637,3071.0,3070.3,3.25693]
[1732144491608,3.25655,3070.8,3070.3,3.25693]
[1732144492205,3.25655,3070.8,3070.3,3.908334]
[1732144493275,3.25631,3071.0,3070.4,3.2568]
[1732144493484,3.25631,3071.0,3070.4,6.51363]
[1732144493803,3.25631,3071.0,3070.4,3.2568]
[1732144493960,3.25631,3071.0,3070.4,6.51364]
[1732144494301,6.51267,3071.0,3070.4,3.908164]
[1732144494509,3.25631,3071.0,3070.4,3.908164]
[1732144494676,3.25648,3070.8,3070.4,0.651364]
[1732144495007,3.25648,3070.8,3070.2,3.25705]
[1732144495166,3.25648,3070.8,3070.2,6.5141]
[1732144495565,3.25648,3070.8,3070.3,3.257]
[1732144496024,3.25648,3070.8,3069.7,3.25763]
[1732144496025,3.25707,3070.3,3069.7,3.25758]
[1732144496753,3.25718,3070.2,3069.7,3.25758]
[1732144498376,0.7867,3070.4,3069.7,3.25758]
[1732144498377,4.04366,3070.4,3069.8,3.25751]
[1732144498528,3.25712,3070.2,3069.7,3.25758]
[1732144499430,3.25712,3070.2,3069.7,3.909119]
[1732144500978,3.2571,3070.3,3069.7,3.909119]
[1732144501270,3.25712,3070.2,3069.7,3.909119]
[1732144501432,3.25711,3070.2,3069.7,3.909119]
[1732144502930,3.25627,3071.0,3070.5,3.25678]
[1732144503171,3.25628,3071.0,3070.3,3.25699]
[1732144503402,3.25628,3071.0,3070.3,3.25693]
[1732144503607,6.51262,3071.0,3070.3,3.25693]
[1732144503814,3.25628,3071.0,3070.1,3.25713]
[1732144504017,3.25628,3071.0,3070.2,0.407586]
[1732144504480,3.25654,3070.8,3070.2,3.2571]
[1732144504665,3.25632,3071.0,3070.2,3.2571]
[1732144504870,3.25632,3071.0,3070.4,3.25684]
[1732144505280,0.8221,3071.1,3070.5,3.25669]
[1732144505479,3.25607,3071.2,3070.7,3.25654]
[1732144505700,3.25607,3071.2,3070.8,0.7946]
[1732144506271,3.25617,3071.1,3070.6,0.7946]
[1732144507281,3.25674,3070.6,3069.9,4.04006]
[1732144507499,0.7885,3070.5,3069.9,4.04006]
[1732144508007,3.25696,3070.4,3069.9,3.25736]
[1732144508215,3.25696,3070.4,3069.8,0.3909119]
[1732144508590,3.25728,3070.1,3069.3,7.27311]
[1732144508783,3.25728,3070.1,3068.9,4.01552]
[1732144508784,3.25776,3069.6,3068.9,4.01552]
[1732144509090,3.25776,3069.6,3068.9,7.27394]
[1732144509091,3.25786,3069.5,3068.9,7.27394]
[1732144509284,3.25786,3069.5,3069.0,0.727394]
[1732144509799,3.25786,3069.5,3068.9,4.01552]
[1732144510016,0.7874,3070.0,3069.5,3.25777]
[1732144510182,3.25749,3069.9,3069.3,3.25803]
[1732144510382,3.25754,3069.8,3069.3,3.25803]
[1732144510596,3.25754,3069.8,3069.2,3.25807]
[1732144511838,3.25754,3069.8,3069.1,3.69709182]
[1732144512044,0.7874,3070.0,3069.1,0.43887182]
[1732144512325,0.7874,3070.0,3067.6,5.32]
[1732144512326,3.25861,3068.8,3068.2,0.8239]
[1732144512528,6.9227712,3069.3,3068.2,0.8239]
[1732144512529,0.39368472,3069.0,3068.2,0.8239]
[1732144512731,3.25856,3068.9,3068.3,0.408315]
[1732144512897,3.25856,3068.9,3068.4,3.25901]
[1732144513105,0.39368472,3069.0,3068.3,0.408315]
[1732144513106,3.25861,3068.8,3068.3,0.408315]
[1732144513486,3.25861,3068.8,3068.3,3.667445]
[1732144514389,3.65210472,3069.0,3068.3,3.667445]
[1732144514696,3.258,3069.4,3068.3,3.667445]
[1732144514697,3.25801,3069.4,3068.4,0.4491345]
[1732144515001,6.51607,3069.4,3068.8,3.25857]
[1732144515220,3.25845,3069.0,3068.4,3.25893]
[1732144515534,3.25796,3069.4,3068.1,3.25927]
[1732144515535,3.25868,3068.8,3068.1,3.25927]
[1732144516028,3.25892,3068.5,3068.0,0.7514]
[1732144516189,3.25903,3068.4,3067.8,3.25958]
[1732144516388,3.25903,3068.4,3067.8,4.211501]
[1732144516631,3.25892,3068.5,3067.8,7.471081]
[1732144517630,4.4271312,3068.9,3067.6,4.03162]
[1732144517631,4.08734,3068.2,3067.6,4.03162]
[1732144517819,0.828,3068.2,3067.6,4.03162]
[1732144518014,4.08724,3068.2,3067.7,0.403162]
[1732144518228,4.08724,3068.2,3067.4,3.26005]
[1732144518229,3.2594,3068.1,3067.4,3.26005]
[1732144518467,3.2594,3068.1,3067.2,3.26025]
[1732144518468,3.2594,3068.1,3067.5,3.25998]
[1732144518775,3.2594,3068.1,3067.5,3.585978]
[1732144519267,3.25963,3067.9,3067.5,0.325998]
[1732144519428,3.25967,3067.8,3067.2,0.7554]
[1732144519631,3.25967,3067.8,3067.2,4.01569]
[1732144519831,3.25967,3067.8,3067.2,4.743295]
[1732144520248,3.25963,3067.9,3067.2,4.743205]
[1732144520959,3.25963,3067.9,3067.3,3.26017]
[1732144521732,3.25939,3068.1,3067.3,3.26017]
[1732144522077,6.51884,3068.1,3067.5,3.25997]
[1732144522303,3.25948,3068.0,3067.5,3.25997]
[1732144522970,0.7959,3068.8,3067.7,3.25977]
[1732144523188,3.7959,3068.8,3067.9,4.01489]
[1732144523756,7.05454,3068.8,3067.9,4.01489]
[1732144524124,7.05454,3068.8,3068.1,3.25931]
[1732144524125,4.33063712,3068.7,3068.1,3.25931]
[1732144524262,3.25872,3068.7,3068.1,3.25931]
[1732144524573,0.7959,3068.8,3067.9,0.7554]
[1732144524780,4.02947,3069.1,3068.4,3.25892]
[1732144525099,7.28785,3069.1,3068.4,3.25892]
[1732144525604,4.02947,3069.1,3068.4,3.25892]
[1732144525777,3.25841,3069.0,3068.4,3.25892]
[1732144526792,4.02947,3069.1,3068.4,3.25892]
[1732144526793,0.7711,3069.1,3068.8,3.25852]
[1732144527001,4.02885,3069.6,3068.9,3.25843]
[1732144527307,4.02885,3069.6,3069.0,3.25838]
[1732144527610,7.28669,3069.6,3069.0,3.25838]
[1732144527782,3.25788,3069.5,3069.0,3.25838]
[1732144527970,3.25788,3069.5,3068.8,6.51703]
[1732144528163,3.25797,3069.4,3068.8,3.664672]
[1732144528477,3.25797,3069.4,3068.8,3.25851]
[1732144528680,4.02889,3069.6,3068.8,3.25851]
[1732144528894,3.25786,3069.5,3069.0,3.25838]
[1732144529211,3.25807,3069.3,3068.8,3.25851]
[1732144530966,0.8212,3069.0,3068.2,0.8145]
[1732144531187,0.8212,3069.0,3068.1,3.25929]
[1732144531711,3.25862,3068.8,3067.9,4.07403]
[1732144531879,3.25893,3068.5,3067.9,4.07403]
[1732144532208,3.25893,3068.5,3067.9,7.33351]
[1732144532392,3.25893,3068.5,3067.9,8.066861]
[1732144532707,3.25871,3068.7,3068.1,3.25934]
[1732144534814,3.25871,3068.7,3068.2,3.25922]
[1732144537403,3.25861,3068.8,3068.2,3.25922]
[1732144538888,3.25934,3068.2,3067.9,0.8145]
[1732144539115,3.25934,3068.2,3067.5,3.25989]
[1732144539116,3.25941,3068.1,3067.6,0.813]
[1732144539528,3.25945,3068.0,3067.6,0.813]
[1732144539897,6.51868,3068.2,3067.6,4.07286]
[1732144541839,3.25934,3068.2,3067.7,3.25977]
[1732144543195,3.25932,3068.2,3067.7,3.25977]
[1732144544003,0.7606,3068.4,3067.7,3.2597]
[1732144544206,0.8136,3068.7,3067.8,0.03259599]
[1732144544407,3.25877,3068.7,3068.2,4.02742]
[1732144544757,3.6646312,3069.3,3068.2,4.02742]
[1732144544758,3.25813,3069.3,3068.7,3.25864]
[1732144544934,3.25812,3069.3,3068.8,3.25858]
[1732144545534,3.25792,3069.5,3068.9,3.25848]
[1732144545835,3.25769,3069.7,3068.9,3.25848]
[1732144545836,3.25797,3069.4,3068.9,3.25848]
[1732144546699,3.25797,3069.4,3068.8,3.25858]
[1732144546700,3.25797,3069.4,3068.8,3.25854]
[1732144547131,3.25776,3069.6,3069.0,3.25833]
[1732144547894,3.25786,3069.5,3069.0,3.25833]
[1732144548495,3.25786,3069.5,3068.8,6.51706]
[1732144548847,4.10207393,3069.5,3068.9,3.25847]
[1732144549219,0.84421393,3069.5,3069.1,3.25827]
[1732144549413,3.25776,3069.6,3069.1,3.25827]
[1732144550212,6.5156,3069.6,3069.1,3.25827]
[1732144550513,3.25776,3069.6,3068.9,6.51688]
[1732144550728,3.25787,3069.5,3069.0,3.25837]
[1732144551490,3.25836,3069.1,3068.3,3.661782]
[1732144551759,6.51706,3068.9,3068.3,3.25904]
[1732144551899,3.25849,3068.9,3068.3,3.25904]
[1732144552264,3.25888,3068.6,3068.0,3.25943]
[1732144552569,3.25888,3068.6,3068.1,0.651893]
[1732144553560,3.25888,3068.6,3068.0,3.25943]
[1732144553761,3.25888,3068.6,3068.1,3.25931]
[1732144555843,3.25894,3068.5,3067.9,3.2595]
[1732144556025,3.25894,3068.5,3067.9,3.25947]
[1732144556950,3.25919,3068.3,3067.9,0.7766]
[1732144557268,4.05085,3068.9,3068.0,0.777]
[1732144557476,3.25845,3069.0,3068.5,0.777]
[1732144557966,3.25845,3069.0,3068.5,4.03588]
[1732144558172,3.25845,3069.0,3068.5,0.777]
[1732144559338,3.989348,3069.0,3068.5,0.777]
[1732144559584,0.730898,3069.0,3068.5,0.777]
[1732144559779,4.01564,3069.4,3068.5,0.777]
[1732144560163,0.7576,3069.4,3068.5,0.777]
[1732144560366,6.51738,3068.8,3068.2,0.7663]
[1732144560536,3.25868,3068.8,3068.3,3.25911]
[1732144562840,3.25842,3069.0,3068.4,3.25902]
[1732144563076,3.25842,3069.0,3068.4,3.987463]
[1732144563953,3.66600098,3069.5,3068.4,3.987463]
[1732144563954,2.070289,3069.7,3069.0,3.25832]
[1732144564150,3.25795,3069.5,3068.9,3.25842]
[1732144564343,5.328009,3069.7,3069.0,3.25838]
[1732144564679,4.02522,3069.7,3069.0,3.25838]
[1732144564892,0.7675,3069.7,3069.2,3.25811]
[1732144565184,4.02523,3069.7,3069.0,3.25829]
[1732144565338,4.02523,3069.7,3069.1,3.25822]
[1732144565535,3.25775,3069.6,3069.1,3.25822]
[1732144566590,0.7757,3070.4,3069.4,3.25796]
[1732144566739,1.302414,3070.5,3069.9,0.8193]
[1732144567088,5.7849745,3070.5,3070.0,3.25731]
[1732144567671,4.4825605,3070.5,3070.0,3.25731]
[1732144568797,3.2569,3070.4,3069.9,0.8193]
[1732144569028,3.2569,3070.4,3069.9,4.07672]
[1732144569356,2.97677966,3070.1,3069.2,0.8082]
[1732144569554,4.07083,3069.7,3069.1,3.25822]
[1732144569754,4.07076,3069.7,3069.1,0.729435]
[1732144569976,4.07076,3069.7,3069.0,3.25829]
[1732144570176,4.07076,3069.7,3069.0,6.51661]
[1732144570554,7.32849,3069.7,3069.0,3.25829]
[1732144570857,7.32849,3069.7,3069.1,3.25825]
[1732144570858,4.07076,3069.7,3069.1,3.25825]
[1732144571053,7.32847,3069.7,3069.1,3.25825]
[1732144571657,3.25775,3069.6,3069.1,3.25825]
[1732144573462,4.07076,3069.7,3069.1,3.25818]
[1732144573665,0.8131,3069.7,3069.2,3.25814]
[1732144574019,3.25744,3069.9,3069.4,3.25789]
[1732144574782,3.25744,3069.9,3069.3,3.258]
[1732144578295,3.2576,3069.8,3069.3,3.258]
[1732144578680,4.05988,3070.0,3069.3,3.258]
[1732144578968,4.05988,3070.0,3069.5,3.25785]
[1732144580185,8.048986,3070.0,3069.5,3.25785]
[1732144580363,7.31728,3070.0,3069.5,3.25785]
[1732144580937,7.31728,3070.0,3069.3,3.258]
[1732144580938,3.25744,3069.9,3069.3,6.51596]
[1732144581180,3.25759,3069.8,3069.3,3.25796]
[1732144581345,3.25787,3069.5,3068.9,4.03609]
[1732144581551,4.01277,3069.5,3068.9,4.03609]
[1732144581761,4.01277,3069.5,3069.0,3.25833]
[1732144583681,4.01277,3069.5,3068.9,4.03609]
[1732144583832,7.27069,3069.5,3068.9,4.03609]
[1732144584038,7.27069,3069.5,3068.5,4.09005]
[1732144584039,1.481969,3069.5,3068.5,4.09005]
[1732144584262,3.25808,3069.3,3068.6,3.25875]
[1732144584440,0.7549,3069.5,3069.0,3.25833]
[1732144584653,0.7549,3069.5,3069.0,3.910013]
[1732144584866,0.7549,3069.5,3069.0,3.25829]
[1732144585035,4.01278,3069.5,3069.0,3.25829]
[1732144585639,4.01278,3069.5,3068.7,3.25861]
[1732144585940,3.25797,3069.4,3068.8,3.2585]
[1732144586488,3.25803,3069.4,3068.9,3.25846]
[1732144588074,4.01278,3069.5,3068.9,3.25846]
[1732144588277,4.01278,3069.5,3068.9,3.25844]
[1732144588487,0.8241,3069.1,3068.4,3.25893]
[1732144588686,3.25844,3069.0,3068.4,3.25893]
[1732144589454,3.25844,3069.0,3068.5,3.2589]
[1732144590452,3.25844,3069.0,3068.5,3.25891]
[1732144591451,3.25844,3069.0,3068.4,3.25893]
[1732144591652,3.2586,3068.8,3068.4,3.25893]
[1732144591851,3.2586,3068.8,3068.2,6.51831]
[1732144592075,3.2586,3068.8,3068.2,3.25913]
[1732144592470,3.2586,3068.8,3068.2,6.51831]
[1732144592793,0.811,3068.7,3068.2,6.51831]
[1732144593297,0.811,3068.2,3067.5,0.8232]
[1732144593466,3.25934,3068.1,3067.6,3.25982]
[1732144593653,3.25934,3068.1,3067.6,4.13006608]
[1732144594176,3.25934,3068.1,3067.6,4.13004608]
[1732144594358,0.811,3068.2,3067.6,4.13001608]
[1732144594565,0.811,3068.2,3067.6,3.25977]
[1732144594761,0.811,3068.2,3067.8,3.25965]
[1732144597655,0.811,3068.2,3067.6,6.51961]
[1732144597854,0.811,3068.2,3067.7,3.25972]
[1732144598190,4.07026,3068.2,3067.6,3.994081]
[1732144600047,4.07026,3068.2,3067.6,0.734281]
[1732144600253,7.32957,3068.2,3067.6,3.25979]
[1732144600455,3.25935,3068.1,3067.6,3.25979]
[1732144601152,0.55,3068.1,3067.2,4.03445]
[1732144601310,3.25973,3067.8,3067.2,4.03444]
[1732144601607,3.25967,3067.8,3067.3,3.26012]
[1732144601989,6.51941,3067.8,3067.3,3.26012]
[1732144603064,7.822899,3067.8,3067.3,3.26012]
[1732144603984,4.563159,3067.8,3067.3,3.26012]
[1732144604189,7.822899,3067.8,3067.2,0.7742]
[1732144604442,4.563159,3067.8,3067.2,4.03444]
[1732144604573,7.822899,3067.8,3067.2,4.03444]
[1732144605127,3.25978,3067.7,3067.2,3.26024]
[1732144608505,1.303489,3067.8,3067.1,3.26037]
[1732144608769,1.303489,3067.8,3067.7,3.25977]
[1732144608933,11.94078272,3068.6,3068.0,6.51881]
[1732144608934,0.7854,3068.5,3068.0,6.51881]
[1732144609270,1.303222,3068.4,3068.0,3.25938]
[1732144611064,3.25962,3067.9,3067.4,0.8009]
[1732144611391,3.25962,3067.9,3067.2,0.8009]
[1732144611392,3.25981,3067.7,3067.2,0.8009]
[1732144611534,3.25981,3067.7,3067.2,4.06119]
[1732144611935,3.25981,3067.7,3067.2,3.26029]
[1732144612437,3.990273,3067.7,3067.2,3.26029]
[1732144612750,0.730463,3067.7,3067.3,3.26018]
[1732144612965,0.7852,3067.8,3067.3,3.26018]
[1732144614770,4.04487,3067.8,3067.3,3.26018]
[1732144615636,0.7852,3067.8,3067.1,3.26032]
[1732144615852,0.7852,3067.8,3067.2,3.26028]
[1732144615853,3.25977,3067.7,3067.2,3.26028]
[1732144616312,3.25977,3067.7,3066.7,3.26081]
[1732144616313,0.7593,3067.6,3066.9,3.26054]
[1732144616440,3.26005,3067.5,3066.9,6.52108]
[1732144616639,3.26005,3067.5,3066.8,3.26072]
[1732144616941,4.05815,3067.3,3066.8,3.26072]
[1732144617157,3.26034,3067.2,3066.7,3.26083]
[1732144617493,3.26034,3067.2,3066.7,6.52166]
[1732144617655,3.26034,3067.2,3066.7,3.26083]
[1732144617997,3.26034,3067.2,3066.5,0.7671]
[1732144618157,3.26034,3067.2,3066.4,3.68692335]
[1732144618337,3.26053,3067.0,3066.5,3.26096]
[1732144619368,0.7979,3067.3,3066.5,3.26096]
[1732144619550,3.26041,3067.1,3066.6,3.26092]
[1732144619756,0.7979,3067.3,3066.5,3.261]
[1732144619757,3.26037,3067.2,3066.5,3.261]
[1732144620008,3.26042,3067.1,3066.6,3.26085]
[1732144620145,3.26037,3067.2,3066.6,3.26085]
[1732144620345,3.26037,3067.2,3066.6,6.52172]
[1732144620545,6.52076,3067.2,3066.6,3.26085]
[1732144620787,6.52075,3067.2,3066.6,3.26085]
[1732144620960,6.52076,3067.2,3066.6,3.26085]
[1732144621157,0.7979,3067.6,3067.1,3.26034]
[1732144621372,0.7979,3067.6,3067.2,3.2602]
[1732144621573,0.7979,3067.6,3067.2,6.52043]
[1732144622410,0.7979,3067.6,3067.2,3.2602]
[1732144622813,0.7979,3067.6,3067.2,6.52042]
[1732144622964,0.7979,3067.6,3067.4,3.26001]
[1732144623161,0.7979,3067.9,3067.5,3.25998]
[1732144624105,0.7979,3067.9,3067.5,3.25992]
[1732144624843,4.07297,3068.3,3067.7,3.2597]
[1732144625006,4.07297,3068.3,3067.7,3.58567]
[1732144625329,4.07297,3068.3,3067.7,3.25968]
[1732144625529,4.07297,3068.3,3067.9,3.25945]
[1732144625530,0.8138,3068.3,3067.9,3.25945]
[1732144625750,0.8138,3067.5,3066.3,1.3594108]
[1732144625921,0.8138,3067.5,3065.6,4.07352023]
[1732144625922,7.33606,3066.5,3065.8,0.8276]
[1732144626121,0.8138,3066.5,3066.1,3.26146]
[1732144626325,3.26066,3066.9,3066.3,3.26123]
[1732144626326,3.26062,3066.9,3066.3,3.26123]
[1732144626492,3.26062,3066.9,3066.1,3.26142]
[1732144626493,3.586726,3066.9,3066.2,3.26129]
[1732144626691,0.326066,3066.9,3066.4,3.2611]
[1732144627132,0.326066,3066.9,3066.3,3.26123]
[1732144627133,3.586686,3066.9,3066.3,3.26123]
[1732144627437,3.26072,3066.8,3066.1,3.26137]
[1732144627646,3.586686,3066.9,3066.2,3.26133]
[1732144627788,6.847406,3066.9,3066.2,3.26133]
[1732144628102,1.303905,3066.8,3066.0,4.49806]
[1732144628302,1.303905,3066.8,3066.0,1.23651]
[1732144628490,1.303905,3066.8,3066.1,3.26145]
[1732144628692,1.303905,3066.8,3066.3,3.26123]
[1732144628957,0.8138,3067.1,3066.7,3.26083]
[1732144629246,0.8138,3067.1,3066.5,3.26095]
[1732144629247,1.303744,3067.0,3066.6,3.2609]
[1732144629528,4.564254,3067.0,3066.5,3.26101]
[1732144629729,1.303744,3067.0,3066.6,3.26092]
[1732144629933,1.303744,3067.0,3066.5,3.26101]
[1732144629934,1.303744,3067.0,3066.5,6.52197]
[1732144630307,1.303744,3067.0,3066.6,3.26092]
[1732144630819,2.98078272,3067.5,3067.1,3.26038]
[1732144630820,0.8162,3067.5,3067.1,3.26038]
[1732144631142,2.119786,3067.5,3067.1,3.26038]
[1732144631648,2.58152312,3067.5,3066.9,3.26062]
[1732144631943,2.83967543,3067.5,3066.9,3.26062]
[1732144632147,2.83967543,3067.5,3066.7,3.26078]
[1732144632148,5.82045815,3067.5,3066.5,3.261]
[1732144632309,0.28396754,3067.4,3066.6,3.26092]
[1732144632823,0.28396754,3067.4,3066.0,3.875]
[1732144632824,1.3108,3067.1,3066.2,3.26133]
[1732144633028,0.46173712,3067.0,3066.2,3.26133]
[1732144633230,0.7608,3066.8,3066.0,0.875]
[1732144634003,3.26106,3066.5,3066.0,0.875]
[1732144634429,6.52212,3066.5,3066.0,0.875]
[1732144634744,3.913272,3066.5,3066.0,0.875]
[1732144634951,0.8144,3066.4,3066.0,0.875]
[1732144635943,0.8144,3066.4,3066.0,4.13657]
[1732144636827,4.29972,3066.1,3066.0,0.875]
[1732144637138,4.729692,3066.1,3066.0,0.875]
[1732144638215,2.93561,3065.8,3065.7,0.005]
[1732144638557,7.95808275,3065.8,3065.7,0.005]
[1732144639316,0.7801,3065.4,3064.5,0.141894]
[1732144639514,0.55,3065.3,3064.5,0.141894]
[1732144639718,0.56,3065.1,3064.5,0.091894]
[1732144640018,0.55,3064.9,3064.5,0.091894]
[1732144640219,0.55,3064.7,3064.5,0.091894]
[1732144640557,1.3665,3064.6,3064.5,0.091894]
[1732144641147,4.30326,3064.6,3064.5,0.091894]
[1732144642020,7.30326,3064.6,3064.5,0.091894]
[1732144644022,1.3665,3064.6,3064.5,0.091894]
[1732144644369,0.7622,3065.0,3064.5,0.091894]
[1732144644537,1.63132,3065.0,3064.5,0.091894]
[1732144644740,1.63146,3064.8,3064.5,0.091894]
[1732144645645,1.63132,3065.0,3064.5,0.091894]
[1732144645839,1.63132,3065.0,3064.5,3.355054]
[1732144646037,1.63132,3065.0,3064.5,0.091894]
[1732144646580,1.63141,3064.9,3064.5,0.091894]
[1732144646780,0.326273,3064.9,3064.5,0.091894]
[1732144646934,0.90532479,3065.2,3064.5,0.091894]
[1732144647134,1.63145,3064.8,3064.5,0.091894]
[1732144647371,1.63151,3064.7,3064.5,0.091894]
[1732144647575,0.326296,3064.6,3064.5,0.091894]
[1732144649050,3.2627,3065.0,3064.5,0.091894]
[1732144649273,1.63134,3065.0,3064.5,0.091894]
[1732144649580,1.63142,3064.8,3064.5,0.091894]
[1732144651691,0.91532479,3065.2,3064.5,0.091894]
[1732144651692,0.7944,3065.4,3064.5,0.917894]
[1732144651891,0.7944,3065.8,3065.2,3.26235]
[1732144652076,0.7944,3065.8,3065.3,3.26231]
[1732144652390,0.7944,3065.8,3065.2,3.26234]
[1732144652607,4.46787275,3065.8,3064.6,3.26299]
[1732144652901,1.63118,3065.3,3064.6,3.26298]
[1732144653196,3.26238,3065.3,3064.6,3.26298]
[1732144653551,1.63121,3065.2,3064.6,6.52597]
[1732144653742,1.957449,3065.2,3064.6,6.52597]
[1732144654143,1.957449,3065.2,3064.7,3.26296]
[1732144654747,0.326239,3065.2,3064.8,3.26283]
[1732144654966,1.63119,3065.3,3064.8,3.26283]
[1732144656189,1.63115,3065.4,3064.8,3.26283]
[1732144656488,1.63114,3065.4,3064.8,6.52561]
[1732144656795,0.326216,3065.4,3065.0,3.26257]
[1732144656961,0.44678728,3065.7,3065.0,3.26257]
[1732144658453,0.28196873,3065.9,3065.5,3.26208]
[1732144659072,0.8196,3065.6,3064.6,4.04543]
[1732144659428,1.63125,3065.2,3064.6,0.7824]
[1732144659582,0.46175751,3065.5,3064.7,3.26287]
[1732144659785,2.09281751,3065.5,3064.9,3.26273]
[1732144660113,1.92233775,3065.4,3064.9,3.26273]
[1732144660314,2.45062,3065.6,3065.1,3.26249]
[1732144660315,0.8196,3065.6,3065.1,3.26249]
[1732144660519,1.63092,3065.8,3065.1,3.26249]
[1732144660520,1.63092,3065.8,3065.1,6.52494]
[1732144660687,1.957099,3065.8,3065.1,6.52494]
[1732144660890,0.55,3065.7,3064.6,0.7824]
[1732144661088,0.326179,3065.8,3065.2,3.2624]
[1732144661089,1.957079,3065.8,3065.2,3.2624]
[1732144661502,0.326179,3065.8,3065.2,3.2624]
[1732144661702,0.8196,3066.3,3065.9,3.26167]
[1732144661886,3.67347275,3067.0,3066.0,3.2615]
[1732144661887,2.45007,3066.6,3066.0,3.2615]
[1732144662110,0.245007,3066.5,3066.0,3.2615]
[1732144662289,0.245007,3066.5,3065.9,6.52326]
[1732144662484,0.245007,3066.5,3065.8,0.7824]
[1732144662731,1.63063,3066.3,3065.8,0.7824]
[1732144662911,0.326121,3066.2,3065.8,0.7824]
[1732144663476,0.326121,3066.2,3065.8,4.04418]
[1732144663721,1.63063,3066.3,3065.8,0.7824]
[1732144663919,1.63059,3066.4,3065.8,4.04412]
[1732144664124,1.94628545,3066.4,3065.8,4.04412]
[1732144664784,1.63084,3065.9,3065.3,4.08762]
[1732144665134,1.6309,3065.8,3065.3,4.08762]
[1732144665278,1.63084,3065.9,3065.3,0.8253]
[1732144665483,1.63084,3065.9,3065.4,3.2622]
[1732144665713,2.036447,3065.9,3065.4,3.2622]
[1732144666995,4.22855855,3066.3,3065.5,3.26207]
[1732144667333,4.22855855,3066.3,3065.3,0.8253]
[1732144667334,1.63053,3066.5,3065.8,3.26168]
[1732144667633,2.4031,3066.6,3066.0,3.26156]
[1732144667842,2.4031,3066.6,3065.9,4.04224]
[1732144668045,0.403352,3066.5,3066.1,3.26146]
[1732144668201,1.63041,3066.8,3066.2,3.26135]
[1732144668382,0.240461,3066.7,3066.2,3.2613]
[1732144669681,0.240461,3066.7,3066.5,3.26104]
[1732144669885,0.240461,3066.7,3066.3,3.26125]
[1732144669886,0.7742,3067.2,3066.7,3.26073]
[1732144670125,0.7742,3067.2,3066.8,3.26071]
[1732144671629,2.40419,3067.5,3066.9,3.2606]
[1732144671841,0.240419,3067.4,3066.9,3.26055]
[1732144672326,0.240419,3067.4,3067.0,3.26045]
[1732144672509,0.240419,3067.4,3067.1,3.2604]
[1732144675013,0.240419,3067.4,3067.2,3.26029]
[1732144675326,0.7742,3067.5,3067.2,3.26029]
[1732144675534,0.8155,3067.9,3067.3,3.26017]
[1732144676038,2.933323,3068.2,3067.0,0.03260212]
[1732144676203,2.092003,3068.2,3067.1,0.8173]
[1732144676389,1.22089084,3068.5,3068.0,3.25944]
[1732144676588,0.20620108,3068.4,3068.0,3.25944]
[1732144677333,1.62957,3068.3,3067.7,4.07699]
[1732144677487,1.93525519,3068.3,3067.7,4.07699]
[1732144677684,1.93525519,3068.3,3067.8,3.25964]
[1732144678741,0.30565519,3068.3,3067.7,4.07699]
[1732144678954,0.30565519,3068.3,3067.8,3.2596]
[1732144679446,0.2367776,3068.2,3067.8,3.2596]
[1732144680602,0.2367776,3068.2,3067.7,0.8173]
[1732144681934,1.8663976,3068.2,3067.6,3.25977]
[1732144682236,0.21720528,3068.1,3067.6,3.25977]
[1732144682745,1.62992,3067.7,3067.2,3.26024]
[1732144682950,1.62992,3067.7,3067.1,4.05914]
[1732144683297,1.62994,3067.6,3066.9,3.26053]
[1732144683551,1.63012,3067.3,3066.7,3.26077]
[1732144684620,4.06824,3067.4,3066.7,6.52151]
[1732144684819,0.243816,3067.3,3066.7,6.52151]
[1732144685230,0.243816,3067.3,3066.7,3.26074]
[1732144685516,1.873916,3067.3,3066.7,3.26074]
[1732144685950,1.63033,3066.9,3066.1,0.8063]
[1732144686270,1.63041,3066.7,3065.7,3.26183]
[1732144686568,1.63074,3066.1,3065.5,3.26205]
[1732144687121,3.26152,3066.1,3065.5,3.26205]
[1732144687627,1.63079,3066.0,3065.5,3.26205]
[1732144687938,1.63074,3066.1,3065.5,3.26205]
[1732144688324,1.63079,3066.0,3065.5,3.26205]
[1732144689035,1.63074,3066.1,3065.5,3.26205]
[1732144689236,2.38394,3066.1,3065.4,0.8063]
[1732144689433,1.63084,3065.9,3065.4,0.8063]